fUST/lending_fUST_20240430
["ID","MTS","AMOUNT","RATE_DAILY","PERIOD"]
[324918310,1714416639928,-151.47429952,0.00033957,7]
[324918312,1714416639938,-466.35092847,0.00034,4]
[324918314,1714416639947,-499.99999999,0.00034,7]
[324918316,1714416639957,-2279.70863382,0.00034244,6]
[324918318,1714416639966,-246.59353628,0.00034375,7]
[324918320,1714416639976,-425.330147,0.00034521,2]
[324918322,1714416639986,-570.503541,0.00034521,2]
[324918324,1714416639997,-1329.78267311,0.00035,4]
[324918326,1714416640008,-1537.50536275,0.00035,2]
[324918328,1714416640017,-154.78330338,0.00035,4]
[324918330,1714416640028,-555.39795402,0.00035,10]
[324918333,1714416640039,-5914.65556104,0.00035,4]
[324918334,1714416640049,-1307.89147106,0.00035,7]
[324918337,1714416640059,-158.392944,0.0003519,2]
[324918339,1714416640070,-152.41297352,0.00035241,7]
[324918341,1714416640081,-246.59353628,0.0003528,7]
[324918343,1714416640091,-246.59353628,0.00035439,7]
[324918345,1714416640101,-151.47429952,0.00035489,7]
[324918347,1714416640111,-152.41297352,0.0003551,7]
[324918350,1714416640120,-1932.019091,0.00035616,120]
[324918353,1714416640130,-44766.69,0.00035616,3]
[324918355,1714416640140,-37305.57,0.00035616,3]
[324918357,1714416640149,-31087.98,0.00035616,3]
[324918359,1714416640160,-154.78330338,0.0003589,2]
[324918361,1714416640169,-231.0,0.00036,2]
[324918362,1714416640178,-231.0,0.00036,2]
[324918363,1714416640187,-231.0,0.00036,2]
[324918365,1714416640197,-158.9494119,0.00036142,7]
[324918367,1714416640206,-156.18617836,0.00036293,7]
[324918369,1714416640215,-151.47429952,0.00036321,7]
[324918371,1714416640227,-153.79833288,0.00036349,7]
[324918373,1714416640236,-246.59353628,0.0003647,7]
[324918375,1714416640246,-153.79833288,0.00036579,7]
[324918377,1714416640255,-152.41297352,0.00036675,7]
[324918379,1714416640264,-3512.35610251,0.00037,2]
[324918380,1714416640274,-153.7952465,0.00037188,2]
[324918383,1714416640284,-246.59353628,0.00037342,7]
[324918384,1714416640294,-156.18617836,0.00037466,7]
[324918386,1714416640304,-150.0,0.000375,32]
[324918388,1714416640313,-417.0,0.00037574,2]
[324918390,1714416640322,-150.0,0.00037574,2]
[324918392,1714416640331,-210.983,0.00037574,2]
[324918394,1714416640340,-224.837,0.00037574,2]
[324918396,1714416640350,-158.9494119,0.00037637,7]
[324918398,1714416640359,-151.47429952,0.00037705,7]
[324918400,1714416640368,-722.96665169,0.00037776,2]
[324918402,1714416640378,-31.78762827,0.00037933,7]
[324918425,1714416640597,-119.68667125,0.00037933,7]
[324918427,1714416640606,-158.9494119,0.00038223,7]
[324918429,1714416640615,-150.77383924,0.00038304,2]
[324918431,1714416640625,-156.18617836,0.0003882,7]
[324918433,1714416640635,-301.54767848,0.00038947,4]
[324918435,1714416640644,-1000.0,0.00039,2]
[324918437,1714416640653,-231.0,0.00039,2]
[324918439,1714416640662,-231.0,0.00039,2]
[324918441,1714416640671,-246.59353628,0.00039224,7]
[324918443,1714416640680,-153.79833288,0.00039419,7]
[324918445,1714416640689,-151.47429966,0.00039555,7]
[324918446,1714416640698,-152.41297352,0.00039558,7]
[324918448,1714416640707,-246.59353628,0.00039564,7]
[324918450,1714416640716,-41.78354215,0.00039725,7]
[324918454,1714416640919,-204.80999413,0.00039725,7]
[324918455,1714416640928,-246.5935364,0.00039729,7]
[324918456,1714416640937,-13.38513131,0.00039771,7]
[324918457,1714416640948,-145.56428064,0.00039771,7]
[324918458,1714416640957,-222.16875736,0.000399,2]
[324918459,1714416640969,-365.83124264,0.000399,2]
[324918460,1714416640978,-2901.81252587,0.0004,4]
[324918461,1714416640989,-1351.8503357,0.0004,4]
[324918462,1714416640999,-995.16145114,0.0004,10]
[324918463,1714416641012,-114.066554,0.0004,2]
[324918677,1714416643392,-3962.000006,0.00035606,3]
[324918694,1714416643577,-199.10622179,0.00035606,3]
[324918695,1714416643592,-7724.4424946,0.00035606,3]
[324918696,1714416643603,-694.31943287,0.00035606,3]
[324918705,1714416646225,-88.52618595,0.0004,2]
[324918706,1714416646234,-225.24881405,0.0004,15]
[324918707,1714416646378,-607.31293743,0.0004,15]
[324918708,1714416646450,-153.0,0.0004,15]
[324918709,1714416646461,-363.25944442,0.0004,15]
[324918712,1714416702885,354.49207638,9.999e-05,2]
[324918713,1714416713633,154.78330338,9.999e-05,2]
[324918714,1714416727407,154.78330338,9.999e-05,2]
[324918715,1714416743407,154.8760713,9.999e-05,2]
[324918720,1714416847251,4854.99606226,9.999e-05,2]
[324918721,1714416873920,600.0,0.00012,7]
[324918725,1714417318985,-354.49207638,0.00012398,2]
[324918726,1714417319006,-160.17143125,0.00012399,2]
[324918727,1714417319028,-300.0,0.00012498,2]
[324918728,1714417319047,-15672.89435023,0.00012499,2]
[324918729,1714417319067,-4152.56435314,0.000125,2]
[324918730,1714417319089,-339.86016633,0.00013597,2]
[324918731,1714417319108,-211.92467003,0.00013597,2]
[324918732,1714417319127,-673.47182912,0.00013597,2]
[324918733,1714417319149,-14633.38902352,0.00015507,2]
[324918734,1714417395907,-10266.61097648,0.00015507,2]
[324918735,1714417395928,-166.666666,0.00018941,2]
[324918736,1714417395949,-743.90946116,0.000199,2]
[324918737,1714417395969,-17905.58429636,0.00019998,2]
[324918738,1714417494664,468.88112624,9.999e-05,2]
[324918739,1714417526241,520.45497619,9.999e-05,2]
[324918802,1714417832595,-354.49207638,0.00015999,2]
[324918804,1714417832604,-514.23297925,0.00016,2]
[324918806,1714417832613,-15672.89435023,0.00018482,2]
[324918808,1714417832622,-24900.0,0.00018483,2]
[324918810,1714417832632,-166.666666,0.00018483,2]
[324918812,1714417832641,-928.56039633,0.00018998,2]
[324918814,1714417832650,-160.579336,0.00019178,2]
[324918816,1714417832660,-743.90946116,0.000199,2]
[324918818,1714417832669,-979.62694157,0.00019998,2]
[324918823,1714417832709,-6625.1245621,0.00019998,2]
[324918825,1714417832720,-2392.75577104,0.00019998,2]
[324918828,1714417832731,-3650.02130279,0.00019998,2]
[324918830,1714417832740,-155.06169061,0.00019998,2]
[324918832,1714417832749,-718.44665129,0.00019998,2]
[324918834,1714417832758,-272.74470342,0.00019998,2]
[324918835,1714417832768,-468.54527247,0.00019998,2]
[324918837,1714417832777,-475.19457976,0.00019998,2]
[324918840,1714417832787,-2626.30439442,0.00019998,2]
[324918842,1714417832796,-265.42106498,0.00019998,7]
[324918844,1714417832805,-206.84821855,0.00019998,2]
[324918845,1714417832815,-339.86016633,0.00019998,2]
[324918848,1714417832824,-192.63540897,0.00019998,2]
[324919219,1714417838620,-221.39216622,0.00019998,2]
[324919221,1714417838629,-673.47182912,0.00019998,2]
[324919222,1714417838639,-211.92467003,0.00019998,2]
[324919223,1714417838648,-2807.21953425,0.00019998,2]
[324919224,1714417838661,-22851.23938312,0.00019998,2]
[324919225,1714417838670,-5806.43566908,0.00019999,2]
[324919226,1714417838679,-1091.30429574,0.00019999,2]
[324919227,1714417838689,-67415.61392424,0.0002,2]
[324919228,1714417838698,-5460.61782475,0.0002,2]
[324919229,1714417838707,-2036.45370538,0.00020813,2]
[324919230,1714417838717,-160.57191678,0.0002091,2]
[324919231,1714417838726,-301.27914122,0.00020912,2]
[324919232,1714417838736,-170.86790632,0.00020912,2]
[324919233,1714417838745,-154.84515485,0.00020912,2]
[324919234,1714417838754,-274.70129001,0.00020912,2]
[324919235,1714417838764,-157.85138427,0.00020912,2]
[324919236,1714417838774,-164.04462217,0.00020912,2]
[324919237,1714417838784,-579.63919765,0.00020912,2]
[324919238,1714417838795,-176.45122466,0.00020912,2]
[324919239,1714417838805,-408.98014644,0.00020912,2]
[324919240,1714417838815,-526.63352259,0.00020913,2]
[324919241,1714417838825,-159.19819518,0.00022,2]
[324919242,1714417838835,-165.569626,0.00022466,2]
[324919243,1714417838845,-183.17177,0.00022466,2]
[324919244,1714417838854,-714.0781204,0.00023,2]
[324919245,1714417838864,-200.0,0.00024658,15]
[324919246,1714417838874,-159.42120661,0.00025325,2]
[324919247,1714417838884,-11119.57201086,0.00026,2]
[324919248,1714417838894,-150.69604995,0.00026251,2]
[324919249,1714417838904,-159.42120661,0.00026428,2]
[324919250,1714417838914,-2564.64249226,0.000265,2]
[324919251,1714417838924,-156.18617839,0.00026502,2]
[324919252,1714417838934,-391.10655818,0.000266,2]
[324919253,1714417838943,-150.69604995,0.00026701,2]
[324919254,1714417838953,-151.3274621,0.00026801,2]
[324919255,1714417838962,-2564.64249226,0.0002685,2]
[324919256,1714417838972,-44444.0,0.000269,3]
[324919257,1714417838982,-150.69604995,0.00026924,2]
[324919258,1714417838991,-9064.38067334,0.0002699,2]
[324919259,1714417839004,-16924.97417283,0.0002699,2]
[324919260,1714417839013,-8527.63031331,0.00027,2]
[324919261,1714417839023,-304451.3386196,0.00027,15]
[324919262,1714417839032,-2564.64249226,0.000272,2]
[324919263,1714417839042,-166.666666,0.00027397,2]
[324919264,1714417839051,-150.0,0.00027399,2]
[324919265,1714417839060,-975.65412207,0.000274,2]
[324919266,1714417839070,-31297.24918352,0.000275,2]
[324919267,1714417839079,-2564.64249226,0.0002755,2]
[324919268,1714417839088,-156066.91232504,0.0002763,2]
[324919269,1714417839097,-2564.64249226,0.000279,2]
[324919270,1714417839107,-29575.56394136,0.00028,7]
[324919271,1714417839116,-424.03324128,0.00028,2]
[324919272,1714417839125,-409865.4589815,0.00028,4]
[324919273,1714417839135,-3754.1809699,0.00028,3]
[324919274,1714417839145,-156.18617839,0.00028036,2]
[324919275,1714417839156,-166.666666,0.00028038,2]
[324919276,1714417839166,-224.34545947,0.00028059,2]
[324919277,1714417839176,-150.69604995,0.00028324,2]
[324919278,1714417839186,-159.42120661,0.00028376,2]
[324919279,1714417839196,-150.0,0.00028399,2]
[324919280,1714417839205,-183.17177,0.00028493,2]
[324919281,1714417839215,-166.666666,0.00028679,2]
[324919282,1714417839224,-127190.66315456,0.0002877,2]
[324919283,1714417839233,-152.41297354,0.00029023,2]
[324919284,1714417839242,-166.666666,0.00029321,2]
[324919285,1714417839252,-205.0,0.000295,30]
[324919286,1714417839261,-150.69604995,0.00029657,2]
[324919287,1714417839270,-150.69604995,0.00029822,2]
[324919288,1714417839280,-172405.37222653,0.000299,2]
[324919289,1714417839289,-166.666666,0.00029962,2]
[324919290,1714417839298,-212.47717672,0.0003,4]
[324919291,1714417839308,-188.38304262,0.0003,4]
[324919292,1714417839318,-154.78330338,0.0003,4]
[324919293,1714417839327,-287.0,0.0003,2]
[324919294,1714417839336,-150.69604995,0.00030086,7]
[324919295,1714417839346,-166.666666,0.00030603,2]
[324919296,1714417839357,-150.69604995,0.00030687,7]
[324919297,1714417839366,-286.72543224,0.00031,2]
[324919298,1714417839376,-151.3274621,0.00031146,7]
[324919299,1714417839385,-150.69604995,0.00031596,7]
[324919300,1714417839395,-29688.55303323,0.00031667,7]
[324919301,1714417839406,-2483.30132558,0.00031667,2]
[324919302,1714417839415,-44421.76678401,0.00031667,2]
[324919303,1714417839425,-2187.0381657,0.00031667,2]
[324919304,1714417839434,-300.0,0.00031667,2]
[324919305,1714417839443,-781.30639903,0.00031667,2]
[324919306,1714417839453,-1192.06603489,0.00031667,14]
[324919307,1714417839462,-224.62805428,0.00031667,10]
[324919308,1714417839471,-286.55434273,0.00031667,2]
[324919309,1714417839481,-5455.20390675,0.00031667,2]
[324919310,1714417839491,-4087.68306417,0.00031667,2]
[324919311,1714417839500,-315.48630084,0.00031667,2]
[324919312,1714417839510,-281.12466351,0.00031667,2]
[324919313,1714417839520,-4578.11340256,0.00031667,2]
[324919314,1714417839530,-1022.94863432,0.00031667,10]
[324919315,1714417839539,-19196.75151336,0.00031667,2]
[324919316,1714417839548,-6632.5736523,0.00031667,5]
[324919317,1714417839558,-469.05936293,0.00031667,2]
[324919318,1714417839569,-430.70263388,0.00031667,2]
[324919319,1714417839579,-3011.72564414,0.00031667,2]
[324919320,1714417839589,-2867.67739548,0.00031667,2]
[324919321,1714417839598,-1003.38381317,0.00031667,2]
[324919322,1714417839608,-625.9,0.00031667,120]
[324919323,1714417839618,-977.55062889,0.00031667,2]
[324919324,1714417839628,-153.34957969,0.00031667,2]
[324919325,1714417839638,-153.34957969,0.00031667,2]
[324919326,1714417839647,-153.34957969,0.00031667,2]
[324919327,1714417839657,-153.34957969,0.00031667,2]
[324919328,1714417839666,-638.7649893,0.00032,4]
[324919329,1714417839676,-159.42120664,0.00032163,7]
[324919330,1714417839686,-152.41297354,0.00032484,7]
[324919331,1714417839695,-150.69604995,0.0003264,7]
[324919332,1714417839705,-153.7983329,0.00032658,7]
[324919333,1714417839715,-151.3274621,0.00032796,7]
[324919334,1714417839725,-500.0,0.00032876,10]
[324919335,1714417839736,-287.0,0.00033,2]
[324919336,1714417839746,-287.0,0.00033,2]
[324919337,1714417839756,-150.69604995,0.00033345,7]
[324919338,1714417839766,-151.3274621,0.00033516,7]
[324919339,1714417839775,-152.41297354,0.00033596,7]
[324919340,1714417839786,-150.69604995,0.0003373,7]
[324919341,1714417839795,-501.86462815,0.000338,60]
[324919342,1714417839806,-152.41297354,0.00033977,7]
[324919343,1714417839815,-466.35092847,0.00034,4]
[324919344,1714417839826,-152.41297354,0.00034052,7]
[324919345,1714417839836,-150.69604995,0.00034095,7]
[324919346,1714417839846,-200.0,0.000345,30]
[324919347,1714417839855,-183.17177,0.00034521,2]
[324919348,1714417839865,-1271.52239957,0.00034728,12]
[324919349,1714417839875,-26905.96443452,0.000349,2]
[324919350,1714417839884,-154.78330338,0.00035,4]
[324919351,1714417839893,-1329.78267311,0.00035,4]
[324919352,1714417839903,-1307.89147106,0.00035,7]
[324919354,1714417839912,-1967.12784789,0.00035,4]
[324919356,1714417839923,-854.16964597,0.00035,2]
[324919357,1714417839938,-10285.44452255,0.00035,2]
[324919358,1714417839958,-33147.42444606,0.00035,7]
[324919359,1714417839974,-2102.2310673,0.00035,120]
[324919360,1714417839996,-151.3274621,0.0003506,7]
[324919361,1714417840016,-1508.16249302,0.00035455,14]
[324919362,1714417840040,-151.0,0.00035616,2]
[324919363,1714417840064,-529.039299,0.00035616,2]
[324919365,1714417840089,-175.459729,0.00035616,2]
[324919367,1714417840106,-529.039299,0.00035616,2]
[324919369,1714417840116,-175.459729,0.00035616,2]
[324919371,1714417840125,-269.821985,0.00035616,2]
[324919373,1714417840135,-269.821985,0.00035616,2]
[324919375,1714417840144,-151.0,0.00035616,2]
[324919377,1714417840156,-254.632697,0.00035616,2]
[324919379,1714417840166,-747.476019,0.00035616,2]
[324919381,1714417840176,-747.476019,0.00035616,2]
[324919383,1714417840185,-744.322369,0.00035616,2]
[324919386,1714417840194,-744.322369,0.00035616,2]
[324919388,1714417840203,-151.0,0.00035616,2]
[324919390,1714417840213,-151.0,0.00035616,2]
[324919392,1714417840224,-151.0,0.00035616,2]
[324919394,1714417840233,-358.707788,0.00035616,2]
[324919396,1714417840243,-279.061685,0.00035616,2]
[324919397,1714417840252,-358.707788,0.00035616,2]
[324919398,1714417840261,-161.210912,0.00035616,2]
[324919399,1714417840271,-2415.023865,0.00035616,120]
[324919402,1714417840281,-38557.3,0.00035616,3]
[324919404,1714417840290,-43652.45,0.00035616,3]
[324919406,1714417840300,-211.26804565,0.0003589,2]
[324919408,1714417840309,-1828.44111052,0.00036,30]
[324919410,1714417840318,-62070.07144477,0.00036,14]
[324919411,1714417840327,-151.0,0.00036,2]
[324919413,1714417840337,-151.0,0.00036,2]
[324919416,1714417840349,-151.0,0.00036,2]
[324919417,1714417840359,-151.0,0.00036,2]
[324919419,1714417840369,-151.0,0.00036,2]
[324919421,1714417840378,-1052.804186,0.00036,2]
[324919423,1714417840389,-1052.804186,0.00036,2]
[324919425,1714417840400,-151.0,0.00036,2]
[324919426,1714417840410,-151.0,0.00036,2]
[324919427,1714417840420,-692.205225,0.00036,2]
[324919428,1714417840431,-4324.67959,0.00036,2]
[324919429,1714417840442,-692.205225,0.00036,2]
[324919430,1714417840451,-4324.67959,0.00036,2]
[324919431,1714417840460,-2573.787143,0.00036,2]
[324919432,1714417840469,-2573.787143,0.00036,2]
[324919433,1714417840479,-1020.263151,0.00036,2]
[324919434,1714417840488,-1363.525546,0.00036,2]
[324919435,1714417840497,-1363.525546,0.00036,2]
[324919436,1714417840506,-181.449053,0.00036,2]
[324919437,1714417840515,-363.495056,0.00036,2]
[324919438,1714417840525,-1020.263151,0.00036,2]
[324919439,1714417840534,-363.495056,0.00036,2]
[324919440,1714417840543,-221.618425,0.00036,2]
[324919441,1714417840552,-221.618425,0.00036,2]
[324919442,1714417840562,-736.224591,0.00036,2]
[324919443,1714417840571,-736.224591,0.00036,2]
[324919444,1714417840581,-287.0,0.00036,2]
[324919445,1714417840590,-287.0,0.00036,2]
[324919446,1714417840600,-256.30765386,0.0003624,2]
[324919447,1714417840609,-150.69604995,0.00036664,7]
[324919448,1714417840619,-2926.96341876,0.00037,2]
[324919450,1714417840629,-10579.73867581,0.00037,2]
[324919451,1714417840638,-153.7983329,0.00037004,7]
[324919452,1714417840775,-151.3274621,0.00037006,7]
[324919453,1714417840786,-150.69604995,0.00037045,7]
[324919454,1714417840796,-250.0,0.00037574,2]
[324919455,1714417840806,-417.0,0.00037574,2]
[324919456,1714417840816,-150.0,0.00037574,2]
[324919457,1714417840825,-151.32746214,0.00037616,7]
[324919458,1714417840834,-5009.79512819,0.00038,2]
[324919459,1714417840844,-224.9562981,0.00038029,2]
[324919460,1714417840854,-203.7672836,0.00038029,2]
[324919461,1714417840863,-153.0,0.00038029,2]
[324919462,1714417840872,-153.0,0.00038029,2]
[324919463,1714417840882,-153.0,0.00038029,2]
[324919464,1714417840891,-153.7952465,0.00038029,2]
[324919465,1714417840900,-287.0,0.00039,2]
[324919466,1714417840914,-150.69604995,0.00039266,7]
[324919467,1714417840923,-150.69604995,0.00039379,7]
[324919468,1714417840932,-232.10092761,0.00039397,30]
[324919469,1714417840942,-150.5,0.0003977,7]
[324919470,1714417840953,-150.5,0.0003978,7]
[324919471,1714417840962,-207.0,0.0003978,35]
[324919472,1714417840971,-150.5,0.0003979,7]
[324919473,1714417840981,-207.0,0.0003979,35]
[324919474,1714417840990,-167.52,0.0003979,35]
[324919475,1714417841000,-192303.43205922,0.000398,60]
[324919476,1714417841010,-529.039299,0.000398,2]
[324919477,1714417841020,-151.0,0.000398,2]
[324919478,1714417841029,-175.459729,0.000398,2]
[324919479,1714417841039,-529.039299,0.000398,2]
[324919480,1714417841048,-175.459729,0.000398,2]
[324919481,1714417841058,-269.821985,0.000398,2]
[324919482,1714417841067,-269.821985,0.000398,2]
[324919483,1714417841077,-151.0,0.000398,2]
[324919484,1714417841086,-747.476019,0.000398,2]
[324919485,1714417841096,-747.476019,0.000398,2]
[324919486,1714417841106,-744.322369,0.000398,2]
[324919487,1714417841118,-744.322369,0.000398,2]
[324919488,1714417841128,-151.0,0.000398,2]
[324919489,1714417841137,-151.0,0.000398,2]
[324919490,1714417841147,-151.0,0.000398,2]
[324919491,1714417841160,-358.707788,0.000398,2]
[324919492,1714417841170,-358.707788,0.000398,2]
[324919493,1714417841179,-161.210912,0.000398,2]
[324919494,1714417841188,-1159.84144778,0.0003988,120]
[324919495,1714417841198,-168.58,0.0003997,35]
[324919496,1714417841207,-150.5,0.0003997,35]
[324919497,1714417841217,-967.0,0.0003997,35]
[324919498,1714417841226,-150.5,0.0003998,35]
[324919499,1714417841236,-150.5,0.0003998,35]
[324919500,1714417841245,-967.0,0.0003998,35]
[324919501,1714417841254,-150.5,0.0003999,35]
[324919502,1714417841264,-150.5,0.0003999,35]
[324919503,1714417841273,-967.0,0.0003999,35]
[324919504,1714417841283,-263289.40164875,0.0004,15]
[324919505,1714417841296,-2855.76794458,0.0004,15]
[324919519,1714417843712,-161.210912,0.00035616,2]
[324919520,1714417843723,-151.0,0.00035616,2]
[324919521,1714417843734,-161.210912,0.000398,2]
[324919522,1714417843743,-151.0,0.000398,2]
[324919523,1714417843753,-4235.42117256,0.0004,15]
[324919549,1714417848634,-254.26654517,0.0004,15]
[324919646,1714419038999,-163.11467906,0.00018819,2]
[324919648,1714419039009,-2079.0,0.00018918,2]
[324919650,1714419039018,-278.54178258,0.00018919,2]
[324919652,1714419039027,-300.0,0.00018919,2]
[324919654,1714419039036,-736.16028636,0.0001892,2]
[324919656,1714419039045,-15672.89435023,0.0001892,2]
[324919658,1714419039055,-32677.19449565,0.00018921,2]
[324919675,1714419039200,-24900.0,0.00018922,2]
[324919677,1714419039210,-277.37632547,0.00019178,2]
[324919679,1714419039219,-166.666666,0.000194,2]
[324919681,1714419039228,-1139.85431691,0.000198,2]
[324919683,1714419039237,-5460.61782475,0.0002,2]
[324919685,1714419039247,-420.0,0.00020811,2]
[324919687,1714419039255,-7934.04214632,0.00020889,2]
[324919689,1714419039265,-179.02051901,0.00020911,2]
[324919691,1714419039274,-503.7776499,0.00020911,2]
[324919693,1714419039284,-32643.41013841,0.00020912,2]
[324919695,1714419039293,-603.57234398,0.00020912,2]
[324919697,1714419039302,-161.07617556,0.00020913,2]
[324919699,1714419039311,-391.13953937,0.00020913,2]
[324919701,1714419039320,-159.19819518,0.00022,2]
[324919703,1714419039330,-190.110412,0.00022466,2]
[324919705,1714419039339,-361.530624,0.00022466,2]
[324919707,1714419039348,-714.0781204,0.00023,2]
[324919709,1714419039358,-152.41297352,0.00025095,2]
[324919710,1714419039367,-156.63256101,0.00025395,2]
[324919711,1714419039376,-153.79833288,0.00025501,2]
[324919712,1714419039385,-1139.85431691,0.00025529,2]
[324919713,1714419039394,-151.47429952,0.0002564,2]
[324919714,1714419039403,-156.18617836,0.00026039,2]
[324919715,1714419039412,-156.63256101,0.00026253,2]
[324919716,1714419039420,-151.64504333,0.0002641,2]
[324919717,1714419039431,-151.64504333,0.00026924,2]
[324919718,1714419039440,-151.47429952,0.00026951,2]
[324919719,1714419039449,-8527.63031331,0.00027,2]
[324919720,1714419039459,-166.666666,0.00027397,2]
[324919721,1714419039469,-152.41297352,0.00027583,2]
[324919722,1714419039478,-620.00038855,0.00027903,2]
[324919723,1714419039487,-156.63256101,0.00027929,2]
[324919724,1714419039496,-424.03324128,0.00028,2]
[324919725,1714419039505,-166.666666,0.00028038,2]
[324919726,1714419039513,-156.63256101,0.000281,2]
[324919727,1714419039522,-156.63256101,0.00028117,2]
[324919728,1714419039531,-156.63256101,0.00028325,2]
[324919729,1714419039540,-190.110412,0.00028493,2]
[324919730,1714419039549,-361.530624,0.00028493,2]
[324919732,1714419039558,-166.666666,0.00028679,2]
[324919734,1714419039567,-620.00001943,0.00029298,2]
[324919736,1714419039576,-166.666666,0.00029321,2]
[324919738,1714419039585,-153.79833288,0.00029363,2]
[324919740,1714419039594,-153.79833288,0.00029411,2]
[324919742,1714419039603,-156.63256101,0.00029415,2]
[324919744,1714419039613,-156.63256101,0.00029626,2]
[324919746,1714419039622,-151.64504333,0.00029787,2]
[324919748,1714419039634,-166.666666,0.00029962,2]
[324919750,1714419039643,-156.21860889,0.0003,4]
[324919752,1714419039653,-269.0,0.0003,2]
[324919754,1714419039662,-152.41297352,0.00030037,7]
[324919756,1714419039675,-156.63256101,0.00030348,7]
[324919758,1714419039684,-153.79833288,0.0003053,7]
[324919760,1714419039693,-166.666666,0.00030603,2]
[324919762,1714419039702,-152.41297352,0.00030759,7]
[324919764,1714419039711,-151.64504333,0.00030964,7]
[324919766,1714419039720,-153.79833288,0.0003107,7]
[324919768,1714419039730,-151.47429952,0.00031123,7]
[324919770,1714419039739,-156.63256101,0.00031256,7]
[324919772,1714419039750,-1139.85431691,0.00031257,5]
[324919774,1714419039759,-56296.26,0.00031576,3]
[324919776,1714419039768,-10000.0,0.00031586,60]
[324919778,1714419039777,-625.9,0.00031586,120]
[324919780,1714419039787,-977.55062889,0.00031586,2]
[324919782,1714419039795,-153.34957969,0.00031586,2]
[324919784,1714419039804,-153.34957969,0.00031586,2]
[324919786,1714419039814,-153.34957969,0.00031586,2]
[324919788,1714419039823,-153.34957969,0.00031586,2]
[324919790,1714419039832,-156.63256101,0.00031682,7]
[324919792,1714419039842,-156.63256101,0.0003185,7]
[324919794,1714419039851,-156.63256101,0.00031963,7]
[324919796,1714419039860,-156.63256101,0.00031976,7]
[324919798,1714419039869,-447.13549251,0.00032,4]
[324919800,1714419039878,-152.41297352,0.00032205,7]
[324919802,1714419039887,-156.63256101,0.00032215,7]
[324919804,1714419039896,-2000.0,0.00032499,2]
[324919806,1714419039906,-10000.0,0.00032586,2]
[324919808,1714419039915,-269.0,0.00033,2]
[324919810,1714419039923,-269.0,0.00033,2]
[324919812,1714419039933,-152.41297352,0.00033328,7]
[324919814,1714419039942,-156.63256101,0.00033589,7]
[324919816,1714419039952,-156.63256101,0.00033645,7]
[324919818,1714419039961,-151.64504333,0.0003399,7]
[324919820,1714419039970,-466.35092847,0.00034,4]
[324919822,1714419039979,-16228.24523147,0.00034,60]
[324919824,1714419039988,-156.63256101,0.00034235,7]
[324919826,1714419039997,-190.110412,0.00034521,2]
[324919828,1714419040006,-361.530624,0.00034521,2]
[324919830,1714419040016,-1000.0,0.000348,3]
[324919832,1714419040025,-156.63256101,0.00034924,7]
[324919835,1714419040034,-1307.89147106,0.00035,7]
[324919836,1714419040044,-854.16964597,0.00035,2]
[324919839,1714419040053,-154.78330338,0.00035,4]
[324919840,1714419040062,-1329.78267311,0.00035,4]
[324919843,1714419040072,-961.68740692,0.00035,30]
[324919844,1714419040081,-5914.65556104,0.00035,4]
[324919846,1714419040090,-447.0489704,0.00035,10]
[324919848,1714419040099,-12756.78468986,0.00035,4]
[324919851,1714419040109,-791.81686347,0.00035,30]
[324919853,1714419040119,-156.63256101,0.00035183,7]
[324919854,1714419040128,-152.41297352,0.00035231,7]
[324919857,1714419040138,-152.41297352,0.00035252,7]
[324919859,1714419040148,-3864.038183,0.00035616,120]
[324919861,1714419040157,-154.78330338,0.0003589,2]
[324919863,1714419040167,-162.0,0.0003589,2]
[324919865,1714419040176,-162.0,0.00036,2]
[324919867,1714419040186,-269.0,0.00036,2]
[324919869,1714419040196,-269.0,0.00036,2]
[324919871,1714419040206,-269.0,0.00036,2]
[324919873,1714419040215,-156.18617836,0.00036341,7]
[324919875,1714419040224,-156.63256101,0.00036363,7]